[Event "*** SCC Grand Prix: Titled Tuesday Blitz"]
[Site "Chess.com"]
[Date "2020.10.06"]
[Round "1"]
[White "ExcitingTrap"]
[Black "Obito24"]
[Result "0-1"]
[WhiteElo "2253"]
[BlackElo "2571"]
[TimeControl "180+1"]
[EndTime "10:09:07 PDT"]
[Termination "Obito24 won by checkmate"]

1. e4 {[%clk 0:03:00.9]} 1... c5 {[%clk 0:02:58.9]} 2. Nf3 {[%clk 0:03:00.4]}
2... d6 {[%clk 0:02:53.3]} 3. Bb5+ {[%clk 0:02:59.2]} 3... Nd7 {[%clk
0:02:51.9]} 4. O-O {[%clk 0:02:58.6]} 4... Nf6 {[%clk 0:02:45.6]} 5. Re1 {[%clk
0:02:58.4]} 5... a6 {[%clk 0:02:42.2]} 6. Bf1 {[%clk 0:02:58.7]} 6... g6 {[%clk
0:02:40.6]} 7. c3 {[%clk 0:02:55.2]} 7... Bg7 {[%clk 0:02:37.3]} 8. d4 {[%clk
0:02:55.4]} 8... cxd4 {[%clk 0:02:33.4]} 9. cxd4 {[%clk 0:02:56.3]} 9... O-O
{[%clk 0:02:33.7]} 10. Nc3 {[%clk 0:02:55.4]} 10... e6 {[%clk 0:02:17.7]} 11.
Bf4 {[%clk 0:02:36.7]} 11... Nb6 {[%clk 0:01:12.4]} 12. Qd2 {[%clk 0:02:33.4]}
12... Re8 {[%clk 0:01:10.1]} 13. Bh6 {[%clk 0:02:31]} 13... Bd7 {[%clk
0:01:01.3]} 14. e5 {[%clk 0:02:02.5]} 14... dxe5 {[%clk 0:00:56.9]} 15. dxe5
{[%clk 0:02:03.4]} 15... Nfd5 {[%clk 0:00:56.4]} 16. Ne4 {[%clk 0:02:01.7]}
16... Bb5 {[%clk 0:00:42.6]} 17. Nd6 {[%clk 0:01:48.4]} 17... Bxf1 {[%clk
0:00:39.5]} 18. Bxg7 {[%clk 0:01:44.6]} 18... Kxg7 {[%clk 0:00:35.5]} 19. Rxf1
{[%clk 0:01:25.4]} 19... Re7 {[%clk 0:00:33.3]} 20. h3 {[%clk 0:01:17.5]} 20...
h6 {[%clk 0:00:22.8]} 21. Nh2 {[%clk 0:01:06.2]} 21... Rd7 {[%clk 0:00:22.7]}
22. Ng4 {[%clk 0:01:00.9]} 22... Qg5 {[%clk 0:00:22.8]} 23. Qxg5 {[%clk
0:00:45.6]} 23... hxg5 {[%clk 0:00:22.6]} 24. Ne4 {[%clk 0:00:45.5]} 24... Nf4
{[%clk 0:00:21.8]} 25. Rfe1 {[%clk 0:00:33.8]} 25... Rc8 {[%clk 0:00:21.2]} 26.
Ngf6 {[%clk 0:00:22.2]} 26... Rd4 {[%clk 0:00:20.2]} 27. Nd6 {[%clk 0:00:17.7]}
27... Rc2 {[%clk 0:00:19.3]} 28. Nxb7 {[%clk 0:00:14.6]} 28... Rdd2 {[%clk
0:00:19.2]} 29. Ne4 {[%clk 0:00:13.2]} 29... Rd4 {[%clk 0:00:19.2]} 30. Nbd6
{[%clk 0:00:13]} 30... Nbd5 {[%clk 0:00:17.1]} 31. b3 {[%clk 0:00:12.4]} 31...
Nd3 {[%clk 0:00:16.3]} 32. Rf1 {[%clk 0:00:10.3]} 32... Nxe5 {[%clk 0:00:16.2]}
33. Ng3 {[%clk 0:00:08.9]} 33... Nf4 {[%clk 0:00:16]} 34. Nde4 {[%clk
0:00:08.7]} 34... f6 {[%clk 0:00:11.1]} 35. a4 {[%clk 0:00:08.4]} 35... Ned3
{[%clk 0:00:10.9]} 36. Rad1 {[%clk 0:00:07.8]} 36... Kh6 {[%clk 0:00:10.6]} 37.
Nxf6 {[%clk 0:00:07.6]} 37... Rb2 {[%clk 0:00:08.7]} 38. Ng4+ {[%clk 0:00:07.6]}
38... Kg7 {[%clk 0:00:09]} 39. Ne5 {[%clk 0:00:08.1]} 39... Rxb3 {[%clk
0:00:08.7]} 40. Nf3 {[%clk 0:00:08.3]} 40... Rd7 {[%clk 0:00:07.7]} 41. Nxg5
{[%clk 0:00:07.9]} 41... Rb2 {[%clk 0:00:07.8]} 42. N5e4 {[%clk 0:00:08.2]}
42... Kf8 {[%clk 0:00:07.3]} 43. a5 {[%clk 0:00:07.5]} 43... Rc7 {[%clk
0:00:07.6]} 44. Nf6 {[%clk 0:00:07.3]} 44... Rcc2 {[%clk 0:00:07.6]} 45. Nfe4
{[%clk 0:00:07.8]} 45... Ke7 {[%clk 0:00:07.4]} 46. Kh2 {[%clk 0:00:07.5]} 46...
Ra2 {[%clk 0:00:06.1]} 47. Kg1 {[%clk 0:00:07.1]} 47... Ne5 {[%clk 0:00:05.5]}
48. Nd6 {[%clk 0:00:05.4]} 48... Ned3 {[%clk 0:00:04.9]} 49. Nde4 {[%clk
0:00:05.8]} 49... Rcb2 {[%clk 0:00:05]} 50. Rb1 {[%clk 0:00:06.3]} 50... Nd5
{[%clk 0:00:05.6]} 51. Rxb2 {[%clk 0:00:06.7]} 51... Rxb2 {[%clk 0:00:05.7]} 52.
Rd1 {[%clk 0:00:07.1]} 52... N3b4 {[%clk 0:00:05.1]} 53. Rf1 {[%clk 0:00:07]}
53... Ra2 {[%clk 0:00:05.5]} 54. Rc1 {[%clk 0:00:07]} 54... Rxa5 {[%clk
0:00:05.7]} 55. Nc5 {[%clk 0:00:07]} 55... Kd8 {[%clk 0:00:06.6]} 56. Nxe6+
{[%clk 0:00:07]} 56... Ke7 {[%clk 0:00:06.6]} 57. Nd4 {[%clk 0:00:07.7]} 57...
Ra2 {[%clk 0:00:06.3]} 58. Re1+ {[%clk 0:00:08.3]} 58... Kd6 {[%clk 0:00:06.5]}
59. Re2 {[%clk 0:00:09]} 59... Kc5 {[%clk 0:00:07.4]} 60. Re3 {[%clk 0:00:09.4]}
60... Ra1+ {[%clk 0:00:07]} 61. Kh2 {[%clk 0:00:09.3]} 61... Kxd4 {[%clk
0:00:07.7]} 62. Rf3 {[%clk 0:00:09]} 62... a5 {[%clk 0:00:07.9]} 63. Rf7 {[%clk
0:00:09]} 63... a4 {[%clk 0:00:07.6]} 64. Rg7 {[%clk 0:00:09.6]} 64... a3 {[%clk
0:00:07.7]} 65. Rxg6 {[%clk 0:00:10.2]} 65... a2 {[%clk 0:00:08.6]} 66. Rg4+
{[%clk 0:00:10.8]} 66... Kc3 {[%clk 0:00:08.4]} 67. Ne4+ {[%clk 0:00:10.6]}
67... Kb2 {[%clk 0:00:08.4]} 68. Rg3 {[%clk 0:00:10]} 68... Re1 {[%clk 0:00:08]}
69. Nc5 {[%clk 0:00:10.1]} 69... a1=Q {[%clk 0:00:07.7]} 70. Rb3+ {[%clk
0:00:10.2]} 70... Kc2 {[%clk 0:00:07.8]} 71. Rg3 {[%clk 0:00:09.7]} 71... Rh1#
{[%clk 0:00:08.7]} 0-1

[Event "*** SCC Grand Prix: Titled Tuesday Blitz"]
[Site "Chess.com"]
[Date "2020.10.06"]
[Round "1"]
[White "Arfan48"]
[Black "AleksanderHnydiuk"]
[Result "0-1"]
[WhiteElo "2241"]
[BlackElo "2560"]
[TimeControl "180+1"]
[EndTime "10:09:10 PDT"]
[Termination "AleksanderHnydiuk won by resignation"]

1. Nf3 {[%clk 0:02:57.8]} 1... d5 {[%clk 0:02:57.3]} 2. c4 {[%clk 0:02:56.9]}
2... c6 {[%clk 0:02:55.4]} 3. b3 {[%clk 0:02:54.3]} 3... Bg4 {[%clk 0:02:49.6]}
4. Bb2 {[%clk 0:02:53.2]} 4... Nd7 {[%clk 0:02:49.6]} 5. g3 {[%clk 0:02:43.9]}
5... Bxf3 {[%clk 0:02:47.7]} 6. exf3 {[%clk 0:02:44.8]} 6... Ngf6 {[%clk
0:02:41.1]} 7. Bg2 {[%clk 0:02:43.5]} 7... e6 {[%clk 0:02:35.5]} 8. O-O {[%clk
0:02:42.9]} 8... Bd6 {[%clk 0:02:29.9]} 9. d4 {[%clk 0:02:39.5]} 9... O-O {[%clk
0:02:28.5]} 10. Nd2 {[%clk 0:02:39.8]} 10... a5 {[%clk 0:02:24.1]} 11. a3 {[%clk
0:02:32.9]} 11... b5 {[%clk 0:02:21.5]} 12. f4 {[%clk 0:02:27.2]} 12... Qb8
{[%clk 0:02:14]} 13. Qc2 {[%clk 0:02:23.2]} 13... a4 {[%clk 0:02:09.5]} 14. c5
{[%clk 0:02:17.9]} 14... axb3 {[%clk 0:02:06.6]} 15. Qxb3 {[%clk 0:02:16.5]}
15... Bc7 {[%clk 0:02:05.6]} 16. Rfd1 {[%clk 0:01:35.8]} 16... Ra4 {[%clk
0:02:04.9]} 17. Nf3 {[%clk 0:01:35.6]} 17... Ne4 {[%clk 0:02:03.8]} 18. Ne5
{[%clk 0:01:30.2]} 18... Nxe5 {[%clk 0:01:52.3]} 19. fxe5 {[%clk 0:01:31.1]}
19... f5 {[%clk 0:01:35.7]} 20. f3 {[%clk 0:01:20.1]} 20... Ng5 {[%clk 0:01:35]}
21. h4 {[%clk 0:01:20]} 21... Nf7 {[%clk 0:01:34.7]} 22. f4 {[%clk 0:01:16.9]}
22... Qb7 {[%clk 0:01:33]} 23. Bf3 {[%clk 0:01:15.6]} 23... Nh6 {[%clk
0:01:29.1]} 24. Bc3 {[%clk 0:01:13.3]} 24... Ng4 {[%clk 0:01:28.4]} 25. Rdb1
{[%clk 0:01:11.7]} 25... Rfa8 {[%clk 0:01:23.4]} 26. Bxg4 {[%clk 0:01:02]} 26...
fxg4 {[%clk 0:01:23]} 27. h5 {[%clk 0:01:01.8]} 27... Qa7 {[%clk 0:01:18.2]} 28.
Qd1 {[%clk 0:00:55.2]} 28... Ba5 {[%clk 0:01:04.9]} 29. Bxa5 {[%clk 0:00:51]}
29... Qxa5 {[%clk 0:01:04.7]} 30. Qxg4 {[%clk 0:00:50.4]} 30... Re8 {[%clk
0:01:03]} 31. h6 {[%clk 0:00:44.2]} 31... g6 {[%clk 0:01:01.9]} 32. Qg5 {[%clk
0:00:31]} 32... Qd8 {[%clk 0:00:49.6]} 33. Rb4 {[%clk 0:00:27.7]} 33... Qxg5
{[%clk 0:00:38.5]} 34. fxg5 {[%clk 0:00:28.6]} 34... Rea8 {[%clk 0:00:38.4]} 35.
Rf1 {[%clk 0:00:20.6]} 35... Rxa3 {[%clk 0:00:35.9]} 36. Kg2 {[%clk 0:00:20.9]}
36... R3a4 {[%clk 0:00:29.9]} 37. Rxa4 {[%clk 0:00:19]} 37... bxa4 {[%clk
0:00:26.5]} 38. Ra1 {[%clk 0:00:18.9]} 38... a3 {[%clk 0:00:26.4]} 39. Ra2
{[%clk 0:00:17.9]} 39... Ra4 {[%clk 0:00:21.1]} 40. Kf3 {[%clk 0:00:18.1]} 40...
Kf7 {[%clk 0:00:14.3]} 41. Ke3 {[%clk 0:00:17.5]} 41... Ke7 {[%clk 0:00:14.5]}
42. Kd3 {[%clk 0:00:17.8]} 42... Kd7 {[%clk 0:00:14.8]} 43. Kc3 {[%clk
0:00:16.6]} 43... Kc8 {[%clk 0:00:14]} 44. Kb3 {[%clk 0:00:04.6]} 44... Rxd4
{[%clk 0:00:13.9]} 45. Kxa3 {[%clk 0:00:04.8]} 45... Rc4 {[%clk 0:00:10.6]} 46.
Rf2 {[%clk 0:00:03.8]} 46... Rc3+ {[%clk 0:00:08.1]} 47. Kb4 {[%clk 0:00:03.5]}
47... Rxg3 {[%clk 0:00:08.5]} 48. Rf8+ {[%clk 0:00:03.2]} 48... Kb7 {[%clk
0:00:08.4]} 49. Rf7+ {[%clk 0:00:04.1]} 49... Ka6 {[%clk 0:00:08.6]} 50. Rxh7
{[%clk 0:00:02.9]} 50... Rxg5 {[%clk 0:00:08.3]} 51. Rc7 {[%clk 0:00:02.8]}
51... Rg4+ {[%clk 0:00:08.2]} 52. Kc3 {[%clk 0:00:03.2]} 52... Kb5 {[%clk
0:00:08.7]} 53. h7 {[%clk 0:00:03.2]} 53... Rh4 {[%clk 0:00:09]} 54. Rg7 {[%clk
0:00:03.6]} 54... Kxc5 {[%clk 0:00:08.9]} 55. Rxg6 {[%clk 0:00:03.7]} 55... Rh3+
{[%clk 0:00:09.2]} 56. Kd2 {[%clk 0:00:03.7]} 56... Rxh7 {[%clk 0:00:10.1]} 57.
Rxe6 {[%clk 0:00:04.3]} 57... Rh5 {[%clk 0:00:08.2]} 58. Kd3 {[%clk 0:00:04.5]}
58... Rh3+ {[%clk 0:00:08]} 59. Kd2 {[%clk 0:00:04.6]} 59... Rh4 {[%clk
0:00:08.1]} 60. Kd3 {[%clk 0:00:04.3]} 60... Re4 {[%clk 0:00:08.4]} 61. Re8
{[%clk 0:00:03.7]} 61... Re1 {[%clk 0:00:07.7]} 62. Re7 {[%clk 0:00:02.4]} 62...
d4 {[%clk 0:00:07.3]} 63. Kd2 {[%clk 0:00:02.6]} 63... Re3 {[%clk 0:00:07.7]}
64. Re6 {[%clk 0:00:02.2]} 64... Kd5 {[%clk 0:00:06.7]} 65. Rd6+ {[%clk
0:00:02.4]} 65... Kc5 {[%clk 0:00:06.8]} 66. Re6 {[%clk 0:00:03]} 66... Re4
{[%clk 0:00:05.6]} 67. Re8 {[%clk 0:00:03.3]} 67... Kd5 {[%clk 0:00:05]} 68.
Rd8+ {[%clk 0:00:03.9]} 68... Kxe5 {[%clk 0:00:04.9]} 69. Re8+ {[%clk
0:00:04.8]} 69... Kd5 {[%clk 0:00:04.9]} 70. Rd8+ {[%clk 0:00:05.7]} 70... Kc4
{[%clk 0:00:04.9]} 71. Ra8 {[%clk 0:00:04.5]} 71... c5 {[%clk 0:00:05]} 72. Ra4+
{[%clk 0:00:04.5]} 72... Kd5 {[%clk 0:00:05.5]} 73. Ra7 {[%clk 0:00:05.1]} 73...
Rh4 {[%clk 0:00:05.8]} 74. Rd7+ {[%clk 0:00:05.1]} 74... Kc4 {[%clk 0:00:06.1]}
75. Re7 {[%clk 0:00:04.7]} 75... Rh2+ {[%clk 0:00:07]} 76. Kc1 {[%clk
0:00:04.1]} 76... Kc3 {[%clk 0:00:07.4]} 77. Kd1 {[%clk 0:00:03.4]} 77... Rh1+
{[%clk 0:00:07.2]} 78. Re1 {[%clk 0:00:03.8]} 78... Rxe1+ {[%clk 0:00:06.2]} 79.
Kxe1 {[%clk 0:00:04.7]} 79... Kc2 {[%clk 0:00:06.5]} 0-1

[Event "*** SCC Grand Prix: Titled Tuesday Blitz"]
[Site "Chess.com"]
[Date "2020.10.06"]
[Round "1"]
[White "ORS1984"]
[Black "denispopov"]
[Result "1-0"]
[WhiteElo "2486"]
[BlackElo "1959"]
[TimeControl "180+1"]
[EndTime "10:09:48 PDT"]
[Termination "ORS1984 won by checkmate"]

1. e4 {[%clk 0:02:59.9]} 1... c5 {[%clk 0:02:59.7]} 2. Nf3 {[%clk 0:02:59.7]}
2... Nc6 {[%clk 0:02:59.8]} 3. d4 {[%clk 0:02:59.5]} 3... cxd4 {[%clk
0:03:00.7]} 4. Nxd4 {[%clk 0:02:59.9]} 4... e5 {[%clk 0:03:01.1]} 5. Nb5 {[%clk
0:02:59.5]} 5... a6 {[%clk 0:03:01.2]} 6. Nd6+ {[%clk 0:02:59.3]} 6... Bxd6
{[%clk 0:03:01.3]} 7. Qxd6 {[%clk 0:02:59.1]} 7... Qf6 {[%clk 0:03:01.4]} 8. Qa3
{[%clk 0:02:58.8]} 8... Nd4 {[%clk 0:02:45]} 9. Bd3 {[%clk 0:02:43.4]} 9... Qg6
{[%clk 0:02:33.3]} 10. O-O {[%clk 0:02:43.1]} 10... d5 {[%clk 0:02:18.9]} 11.
exd5 {[%clk 0:02:18.3]} 11... Nf3+ {[%clk 0:01:51.7]} 12. Kh1 {[%clk 0:02:15.4]}
12... Qh5 {[%clk 0:01:52.6]} 13. Bb5+ {[%clk 0:01:44.4]} 13... axb5 {[%clk
0:01:47.9]} 14. Qxf3 {[%clk 0:01:45.3]} 14... Qxf3 {[%clk 0:01:45.6]} 15. gxf3
{[%clk 0:01:45.4]} 15... Nf6 {[%clk 0:01:43.7]} 16. Re1 {[%clk 0:01:43.2]} 16...
O-O {[%clk 0:01:34.4]} 17. Rxe5 {[%clk 0:01:39]} 17... Rd8 {[%clk 0:01:31.7]}
18. Bg5 {[%clk 0:01:31.2]} 18... Rxd5 {[%clk 0:01:16.8]} 19. Rxd5 {[%clk
0:01:12]} 19... Nxd5 {[%clk 0:01:17.7]} 20. Na3 {[%clk 0:01:08.4]} 20... b4
{[%clk 0:01:04.9]} 21. Nc4 {[%clk 0:01:07.9]} 21... Be6 {[%clk 0:01:04.3]} 22.
Kg2 {[%clk 0:00:59.7]} 22... f6 {[%clk 0:00:55.4]} 23. Bd2 {[%clk 0:00:56.7]}
23... Nf4+ {[%clk 0:00:36.3]} 24. Bxf4 {[%clk 0:00:56.1]} 24... Bxc4 {[%clk
0:00:34.6]} 25. b3 {[%clk 0:00:56.3]} 25... Bb5 {[%clk 0:00:31.9]} 26. Bd2
{[%clk 0:00:52.4]} 26... Rc8 {[%clk 0:00:31.9]} 27. Rc1 {[%clk 0:00:51.7]} 27...
Ra8 {[%clk 0:00:30.5]} 28. Bxb4 {[%clk 0:00:45.7]} 28... Rxa2 {[%clk 0:00:29.7]}
29. Kg3 {[%clk 0:00:44.9]} 29... Bc6 {[%clk 0:00:28.1]} 30. h4 {[%clk
0:00:44.4]} 30... Kf7 {[%clk 0:00:27.7]} 31. Bc5 {[%clk 0:00:37.7]} 31... h5
{[%clk 0:00:26.1]} 32. Be3 {[%clk 0:00:37.3]} 32... Ke6 {[%clk 0:00:25.4]} 33.
Kf4 {[%clk 0:00:37.1]} 33... Ra5 {[%clk 0:00:22.9]} 34. Kg3 {[%clk 0:00:31.5]}
34... Rf5 {[%clk 0:00:22.2]} 35. f4 {[%clk 0:00:31.1]} 35... Rd5 {[%clk
0:00:22.3]} 36. f3 {[%clk 0:00:24.8]} 36... Kf5 {[%clk 0:00:21]} 37. Kf2 {[%clk
0:00:24.4]} 37... Rd7 {[%clk 0:00:19.6]} 38. Ke2 {[%clk 0:00:23.6]} 38... Re7
{[%clk 0:00:18]} 39. c4 {[%clk 0:00:22.8]} 39... Rd7 {[%clk 0:00:13.4]} 40. b4
{[%clk 0:00:22.4]} 40... b5 {[%clk 0:00:12]} 41. Kf2 {[%clk 0:00:22.4]} 41...
bxc4 {[%clk 0:00:08]} 42. Rxc4 {[%clk 0:00:23.3]} 42... Bd5 {[%clk 0:00:08.5]}
43. Rc5 {[%clk 0:00:23]} 43... Ke6 {[%clk 0:00:08.8]} 44. b5 {[%clk 0:00:22.6]}
44... g6 {[%clk 0:00:08.1]} 45. b6 {[%clk 0:00:22.1]} 45... Bb7 {[%clk
0:00:06.4]} 46. Rc1 {[%clk 0:00:18.7]} 46... Rd5 {[%clk 0:00:06.5]} 47. Re1
{[%clk 0:00:17.7]} 47... Rd7 {[%clk 0:00:05.9]} 48. Rg1 {[%clk 0:00:17.5]} 48...
Kf7 {[%clk 0:00:05.6]} 49. Ra1 {[%clk 0:00:16.9]} 49... Ke6 {[%clk 0:00:05.3]}
50. Ra7 {[%clk 0:00:16.6]} 50... Kf7 {[%clk 0:00:05]} 51. Kg3 {[%clk 0:00:16.9]}
51... Ke6 {[%clk 0:00:05.6]} 52. Ra3 {[%clk 0:00:16.6]} 52... Kf5 {[%clk
0:00:05.9]} 53. Ra1 {[%clk 0:00:17.3]} 53... Ke6 {[%clk 0:00:06.4]} 54. Re1
{[%clk 0:00:17.2]} 54... Kf5 {[%clk 0:00:06.8]} 55. Rc1 {[%clk 0:00:16.4]} 55...
Ke6 {[%clk 0:00:06.3]} 56. Rc5 {[%clk 0:00:15.9]} 56... Rd5 {[%clk 0:00:05.4]}
57. Rc7 {[%clk 0:00:15.3]} 57... Rd7 {[%clk 0:00:05.6]} 58. Rc3 {[%clk
0:00:15.1]} 58... Rd5 {[%clk 0:00:04.8]} 59. Rc1 {[%clk 0:00:14.2]} 59... Rd6
{[%clk 0:00:05]} 60. Rg1 {[%clk 0:00:15.1]} 60... Rd7 {[%clk 0:00:04.4]} 61. Kf2
{[%clk 0:00:16]} 61... Kf5 {[%clk 0:00:04.9]} 62. Rc1 {[%clk 0:00:15.1]} 62...
Ke6 {[%clk 0:00:03.2]} 63. Rc5 {[%clk 0:00:14.9]} 63... Ke7 {[%clk 0:00:03]} 64.
f5 {[%clk 0:00:15.1]} 64... gxf5 {[%clk 0:00:02.9]} 65. Rxf5 {[%clk 0:00:15.1]}
65... Kf7 {[%clk 0:00:03.2]} 66. Rxh5 {[%clk 0:00:15]} 66... Kg6 {[%clk
0:00:03.9]} 67. Rc5 {[%clk 0:00:15]} 67... Kf7 {[%clk 0:00:03.3]} 68. h5 {[%clk
0:00:15.2]} 68... Ke6 {[%clk 0:00:04.2]} 69. h6 {[%clk 0:00:15.3]} 69... Rh7
{[%clk 0:00:02.3]} 70. Rh5 {[%clk 0:00:16.2]} 70... Kf7 {[%clk 0:00:02.2]} 71.
Rc5 {[%clk 0:00:16.1]} 71... Kg6 {[%clk 0:00:02.5]} 72. Rc7 {[%clk 0:00:16.1]}
72... Bd5 {[%clk 0:00:01.9]} 73. Rxh7 {[%clk 0:00:15.8]} 73... Kxh7 {[%clk
0:00:02.8]} 74. Kg3 {[%clk 0:00:16.2]} 74... Bb7 {[%clk 0:00:03.5]} 75. Kf4
{[%clk 0:00:16.3]} 75... Kg6 {[%clk 0:00:03.6]} 76. Kg3 {[%clk 0:00:16.1]} 76...
Kh7 {[%clk 0:00:03.8]} 77. Kf2 {[%clk 0:00:16.4]} 77... Kg6 {[%clk 0:00:03.9]}
78. Ke1 {[%clk 0:00:16.7]} 78... Bxf3 {[%clk 0:00:03.3]} 79. Kd2 {[%clk
0:00:16.6]} 79... Bb7 {[%clk 0:00:03.8]} 80. Kc3 {[%clk 0:00:16.8]} 80... f5
{[%clk 0:00:03.2]} 81. Bf4 {[%clk 0:00:16.6]} 81... Kh7 {[%clk 0:00:03.1]} 82.
Kd4 {[%clk 0:00:17.5]} 82... Kg6 {[%clk 0:00:03.4]} 83. Ke5 {[%clk 0:00:18.4]}
83... Be4 {[%clk 0:00:03.1]} 84. Kd6 {[%clk 0:00:18.4]} 84... Kh7 {[%clk
0:00:03.2]} 85. Kc7 {[%clk 0:00:17.8]} 85... Kg6 {[%clk 0:00:03.1]} 86. b7
{[%clk 0:00:17.8]} 86... Bxb7 {[%clk 0:00:02.4]} 87. Kb6 {[%clk 0:00:17.8]}
87... Be4 {[%clk 0:00:02]} 88. Kc5 {[%clk 0:00:17.5]} 88... Kh7 {[%clk
0:00:02.9]} 89. Kd4 {[%clk 0:00:17.2]} 89... Kg6 {[%clk 0:00:03.8]} 90. Ke5
{[%clk 0:00:17.5]} 90... Kh7 {[%clk 0:00:04.7]} 91. Kf6 {[%clk 0:00:17.8]} 91...
Kh8 {[%clk 0:00:04.7]} 92. Kg6 {[%clk 0:00:17.5]} 92... Kg8 {[%clk 0:00:03.4]}
93. h7+ {[%clk 0:00:17.4]} 93... Kf8 {[%clk 0:00:02.7]} 94. h8=Q+ {[%clk
0:00:17.5]} 94... Ke7 {[%clk 0:00:03.6]} 95. Qe5+ {[%clk 0:00:17.4]} 95... Kd7
{[%clk 0:00:03.2]} 96. Qd6+ {[%clk 0:00:17.5]} 96... Kc8 {[%clk 0:00:04.1]} 97.
Qc7# {[%clk 0:00:17.2]} 1-0